fUSD/lending_fUSD_20240422
["ID","MTS","AMOUNT","RATE_DAILY","PERIOD"]
[323198969,1713803432621,-250.0,0.00011995,2]
[323198970,1713803432630,-184.34,0.00011999,2]
[323198971,1713803432639,-3000.0,0.00012,2]
[323198972,1713803432648,-1750.0,0.00012,2]
[323198973,1713803432657,-184.34,0.00012002,2]
[323198974,1713803432667,-184.34,0.00012005,2]
[323198975,1713803432676,-184.34,0.00012008,2]
[323198976,1713803432685,-184.34,0.00012011,2]
[323198977,1713803432695,-184.34,0.00012014,2]
[323198978,1713803432704,-184.34,0.00012017,2]
[323198980,1713803432713,-184.34,0.00012021,2]
[323198981,1713803432722,-184.34,0.00012024,2]
[323198982,1713803432731,-184.34,0.00012027,2]
[323198983,1713803432740,-84.11208834,0.0001203,2]
[323198984,1713803432753,-100.22791166,0.0001203,2]
[323198985,1713803432765,-157.22,0.00012033,2]
[323198986,1713803432774,-184.34,0.00012033,2]
[323198987,1713803432784,-481.22153125,0.00012033,2]
[323198988,1713803432796,-1081.21446875,0.00012033,2]
[323198989,1713803432805,-184.34,0.00012036,2]
[323198990,1713803432815,-184.34,0.00012039,2]
[323198991,1713803432824,-184.34,0.00012043,2]
[323198992,1713803432834,-184.34,0.00012046,2]
[323198993,1713803432843,-184.34,0.00012049,2]
[323198994,1713803432852,-184.34,0.00012052,2]
[323198995,1713803432861,-184.34,0.00012055,2]
[323198996,1713803432870,-693.01217694,0.00012338,2]
[323198997,1713803432926,-337.37628857,0.00012338,2]
[323198998,1713803432936,-800.0,0.000124,4]
[323198999,1713803432946,-210.0,0.0001245,2]
[323199000,1713803432954,-1600.0,0.000125,4]
[323199001,1713803432963,-256.0905,0.00012579,2]
[323199002,1713803432972,-361.85366258,0.00012579,2]
[323199003,1713803432983,-391.75573742,0.00012579,2]
[323199004,1713803432994,-1648.65670691,0.000126,4]
[323199005,1713803433008,-851.34329309,0.000126,4]
[323199006,1713803433017,-491.80649027,0.00012679,2]
[323199007,1713803433028,-6018.32790803,0.00012679,2]
[323199008,1713803433040,-20362.4644017,0.00012679,2]
[323199009,1713803433049,-3300.0,0.000127,4]
[323199010,1713803433058,-360.0,0.00012744,2]
[323199011,1713803433067,-4200.0,0.000128,4]
[323199012,1713803433076,-1100.35560032,0.000128,2]
[323199013,1713803433085,-199.34,0.00012869,2]
[323199014,1713803433095,-838.25670948,0.0001287,2]
[323199015,1713803433107,-537.58482089,0.0001287,2]
[323199016,1713803433118,-5184.88685256,0.0001287,2]
[323199017,1713803433136,-308.68743525,0.0001287,2]
[323199046,1713803439333,-640.0,0.00011995,2]
[323199047,1713803439342,-1183.66345305,0.0001287,2]
[323199048,1713803439442,-3155.94340301,0.0001287,2]
[323199049,1713803439454,-508.69875141,0.0001287,2]
[323199050,1713803439463,-1256.05124859,0.00012896,2]
[323199051,1713803439474,-287.38234109,0.00012896,2]
[323199052,1713803439485,-361.81867662,0.00012896,2]
[323199053,1713803439497,-594.7477337,0.00012896,2]
[323199054,1713803439509,-1000.0,0.00012896,2]
[323199055,1713803439520,-500.0,0.00012896,2]
[323199056,1713803439529,-4793.3633,0.00012898,2]
[323199057,1713803439539,-5302.0777,0.00012898,2]
[323199058,1713803439549,-3209.81126672,0.00012898,2]
[323199059,1713803439561,-11057.31253328,0.00012898,2]
[323199060,1713803439571,-1000.0,0.000129,2]
[323199061,1713803439581,-10000.0,0.000129,2]
[323199062,1713803439591,-5132.03194694,0.000129,2]
[323199063,1713803439601,-184.38233433,0.000129,2]
[323199064,1713803439611,-1774.10255652,0.000129,2]
[323199065,1713803439621,-473.74657703,0.000129,2]
[323199066,1713803439630,-169.11011791,0.000129,2]
[323199067,1713803439640,-800.0,0.000129,4]
[323199068,1713803439649,-13576.61853071,0.000129,2]
[323199069,1713803439658,-10000.0,0.00012915,2]
[323199070,1713803439668,-13069.82393651,0.00012985,2]
[323199071,1713803439678,-4575.75270794,0.00012986,2]
[323199072,1713803439687,-301.11231854,0.0001299,2]
[323199073,1713803439697,-301.11231854,0.0001299,2]
[323199074,1713803439706,-301.11231854,0.0001299,2]
[323199075,1713803439716,-432.48267008,0.00012996,2]
[323199076,1713803439725,-433.15240288,0.00012996,2]
[323199077,1713803439735,-209.99236181,0.00012996,2]
[323199078,1713803439744,-272.87445165,0.00012996,2]
[323199079,1713803439754,-202.62535728,0.00012997,3]
[323199080,1713803439766,-40577.98287527,0.00012997,2]
[323199081,1713803439776,-202.26348816,0.00012998,2]
[323199082,1713803439785,-35244.67153218,0.00012998,2]
[323199083,1713803439794,-2359.2011908,0.00012998,2]
[323199084,1713803439804,-210.40582089,0.00012998,2]
[323199085,1713803439814,-362.90116211,0.00012998,2]
[323199086,1713803439824,-155.0,0.00012998,2]
[323199087,1713803439833,-410.54897981,0.00012998,2]
[323199088,1713803439842,-169826.54867165,0.00012998,2]
[323199089,1713803439851,-245.12088853,0.00012998,2]
[323199090,1713803439860,-161.04038228,0.00012998,2]
[323199091,1713803439870,-2211.94130741,0.00012998,2]
[323199092,1713803439879,-189.71207442,0.00012998,2]
[323199093,1713803439889,-192.39388199,0.00012998,2]
[323199094,1713803439898,-687.10463362,0.00012998,2]
[323199095,1713803439907,-309.29582041,0.00012998,2]
[323199096,1713803439916,-167.20253002,0.00012998,2]
[323199097,1713803439926,-194.68759006,0.00012998,2]
[323199098,1713803439936,-264.01498696,0.00012998,2]
[323199099,1713803439945,-306.43576063,0.00012998,2]
[323199100,1713803439955,-663.73364054,0.00012998,2]
[323199101,1713803439965,-990.62994113,0.00012998,2]
[323199102,1713803439975,-19499.51467127,0.00012998,2]
[323199103,1713803439985,-191.50130884,0.00012998,2]
[323199104,1713803439994,-308.24550797,0.00012998,2]
[323199105,1713803440003,-683.77972467,0.00012998,2]
[323199106,1713803440013,-376.48214074,0.00012998,2]
[323199107,1713803440022,-250.20236261,0.00012998,2]
[323199108,1713803440031,-155.0,0.00012998,2]
[323199109,1713803440041,-263.79418499,0.00012998,2]
[323199110,1713803440050,-174.12211115,0.00012998,2]
[323199111,1713803440059,-158.3969132,0.00012998,2]
[323199113,1713803440070,-219.73582537,0.00012998,2]
[323199114,1713803440079,-1806.20222963,0.00012998,2]
[323199115,1713803440089,-1136.31586257,0.00012998,2]
[323199116,1713803440098,-155.26212772,0.00012998,2]
[323199117,1713803440108,-1072.90099025,0.00012998,2]
[323199118,1713803440117,-784.50611485,0.00012998,2]
[323199119,1713803440126,-305.63695622,0.00012998,2]
[323199120,1713803440135,-352.14719019,0.00012998,7]
[323199121,1713803440145,-155.3047756,0.00012998,2]
[323199122,1713803440154,-216.5360115,0.00012998,2]
[323199123,1713803440164,-1993.20295054,0.00012998,2]
[323199124,1713803440474,-347.34840719,0.00012998,2]
[323199125,1713803440520,-426.81421058,0.00012998,2]
[323199126,1713803440530,-8082.05741626,0.00012998,2]
[323199127,1713803440541,-175.55659933,0.00012998,2]
[323199128,1713803440550,-199.29265944,0.00012998,2]
[323199129,1713803440560,-1616.52917903,0.00012998,2]
[323199130,1713803440570,-1030.5412573,0.00012999,3]
[323199131,1713803440580,-1035.66623918,0.00012999,3]
[323199132,1713803440590,-1035.66623918,0.00012999,3]
[323199133,1713803440600,-1035.66623918,0.00012999,3]
[323199134,1713803440610,-1035.66623918,0.00012999,3]
[323199135,1713803440620,-3703.11529181,0.00012999,2]
[323199136,1713803440629,-1357899.87574883,0.00013,2]
[323199137,1713803440642,-7870.94708175,0.00013,2]
[323199139,1713803441698,-19921.4151046,0.00013,2]
[323199140,1713803441949,-371.1462,0.00013,2]
[323199141,1713803441961,-464.29749993,0.00013,2]
[323199142,1713803442063,-40638.30385723,0.00013,2]
[323199194,1713803443369,-5215.51625621,0.000129,2]
[323199196,1713803443379,-68055.01849379,0.00013,2]
[323199204,1713803443708,-3692.67624635,0.00013,2]
[323199445,1713803446410,-1702.82391213,0.00012885,2]
[323199462,1713803446582,-1991.14,0.00012885,2]
[323199465,1713803446604,-16674.34494057,0.00012885,2]
[323199469,1713803446631,-3972.0,0.00012885,2]
[323199480,1713803446731,-393.85,0.00012885,2]
[323199482,1713803446742,-40250.0056473,0.00012885,2]
[323199484,1713803446752,-1391.42937058,0.00012996,2]
[323199486,1713803446761,-269.07032238,0.00012999,2]
[323199488,1713803446773,-1055417.09285211,0.00013,2]
[323199492,1713803446797,-48591.59124967,0.00013,2]
[323199497,1713803446836,-852.84092918,0.00013,2]
[323202186,1713803558996,-206.75433877,0.00011314,2]
[323202187,1713803559018,-157.23443646,0.00011315,2]
[323202188,1713803559038,-444.46701666,0.00011316,2]
[323202189,1713803559058,-565.34977281,0.00011317,2]
[323202190,1713803559079,-7723.16849061,0.00011319,2]
[323202191,1713803559100,-835.15,0.00011995,2]
[323202192,1713803559121,-1139.87594469,0.00012,2]
[323202208,1713803673570,357.22,0.00010178,2]
[323202210,1713804057810,11500.0,0.000112,2]
[323202211,1713804133569,8500.74,0.000112,2]
[323202212,1713804168817,339.35,9.475e-05,2]
[323202213,1713804566989,2580.27071034,0.000224,30]
[323202219,1713804631562,-487.2863411,0.00011603,2]
[323202220,1713804631572,-155.0,0.00011604,2]
[323202221,1713804631581,-155.0,0.00011604,2]
[323202222,1713804631590,-3759.13519931,0.00011605,2]
[323202223,1713804631599,-2126.4067856,0.00011606,2]
[323202224,1713804631609,-176.43,0.00011619,2]
[323202225,1713804631618,-250.0,0.00011619,2]
[323202226,1713804631627,-557.78,0.00011638,2]
[323202227,1713804631636,-236.3501646,0.00011696,2]
[323202228,1713804631647,-275.6498354,0.00011696,2]
[323202229,1713804631656,-339.35,0.00011739,2]
[323202230,1713804631665,-159.55,0.00011863,2]
[323202231,1713804631674,-175.81,0.00011912,2]
[323202232,1713804631683,-1930.5,0.00011912,2]
[323202233,1713804632010,-488.0,0.00011973,2]
[323202234,1713804632023,-499.99,0.00011973,2]
[323202235,1713804632032,-2750.0,0.00012,2]
[323202236,1713804632042,-180.42,0.00012223,2]
[323202237,1713804632051,-180.42,0.00012243,2]
[323202238,1713804632060,-180.42,0.00012263,2]
[323202239,1713804632071,-25175.0,0.00012269,2]
[323202240,1713804632080,-180.42,0.00012284,2]
[323202241,1713804632089,-11177.7439,0.000127,2]
[323202242,1713804632099,-162.63,0.000127,2]
[323202243,1713804632108,-4704.36261801,0.00012796,2]
[323202244,1713804632118,-184.38233432,0.00012796,2]
[323202245,1713804632128,-442.25088153,0.00012798,2]
[323202246,1713804632137,-523.10403564,0.00012798,2]
[323202247,1713804632146,-710.869964,0.00012798,2]
[323202248,1713804632156,-263.49210019,0.00012799,2]
[323202249,1713804632165,-66252.79341756,0.000128,5]
[323202250,1713804632260,-829.53450096,0.000128,5]
[323202261,1713804637482,-155.23150939,0.00011505,2]
[323202263,1713804637492,-215585.16472521,0.000128,5]
[323202265,1713804637504,-2199.22889,0.000128,5]
[323202267,1713804637516,-795.2682055,0.000128,5]
[323202270,1713804637528,-1007.38297438,0.000128,5]
[323202273,1713804637555,-5746.78626034,0.000128,5]
[323202275,1713804637567,-2744.47163748,0.000128,5]
[323202278,1713804637579,-15320.00000055,0.000128,5]
[323202281,1713804637598,-11432.2072065,0.000128,5]
[323202290,1713804637982,-1042.97165797,0.000128,5]
[323202291,1713804637993,-827.38146483,0.000128,5]
[323202292,1713804638005,-44424.874046,0.000128,5]
[323202293,1713804638045,-378.69167502,0.000128,5]
[323202294,1713804638056,-11328.67529487,0.000128,5]
[323202295,1713804638068,-30034.04308029,0.000128,5]
[323202296,1713804638101,-689.35729173,0.000128,5]
[323202297,1713804638124,-648.5229323,0.000128,5]
[323202299,1713804639756,-406.44,0.000128,5]
[323202300,1713804639774,-472.71033083,0.000128,5]
[323202301,1713804639831,-664.81519731,0.000128,5]
[323202302,1713804639842,-1068.68132739,0.000128,5]
[323202303,1713804639866,-442.88999996,0.000128,5]
[323202304,1713804639877,-1490.0,0.000128,5]
[323202390,1713804642549,-1254.00000201,0.000128,5]
[323202423,1713804642687,-5850.98052929,0.000128,5]
[323202450,1713804643098,-0.84300779,0.000128,5]
[323202742,1713804646128,-463.20300139,0.00012799,2]
[323202744,1713804646138,-155.76644893,0.00012799,2]
[323202746,1713804646147,-16429.32181704,0.000128,5]
[323202748,1713804646165,-316.01403212,0.000128,5]
[323202750,1713804646176,-264.34,0.000128,5]
[323202752,1713804646187,-904.18154147,0.000128,5]
[323202755,1713804646206,-36247.74598197,0.000128,5]
[323202762,1713804646259,-1117.65997474,0.000128,5]
[323202764,1713804646270,-1683.05929086,0.000128,5]
[323202772,1713804646353,-285.5184421,0.000128,5]
[323203213,1713804652142,505.8,0.000149,14]
[323203215,1713804677273,314.28,0.00010135,2]
[323203217,1713804691135,518.67707001,0.000149,10]
[323203243,1713805169693,298.56,9.865e-05,2]
[323203244,1713805257695,1268.57132451,9.865e-05,10]
[323203245,1713805270639,1268.57132451,9.865e-05,10]
[323203246,1713805285710,749.8942545,9.865e-05,10]
[323203252,1713805687356,304.52,9.504e-05,2]
[323203268,1713805831630,-155.0,0.00011426,2]
[323203270,1713805831640,-1389.09795632,0.00011426,2]
[323203272,1713805831649,-902.12104974,0.00011427,8]
[323203273,1713805831659,-526.8598419,0.00011428,2]
[323203274,1713805831668,-216.02707233,0.00011428,2]
[323203275,1713805831677,-823.1224622,0.00011433,2]
[323203276,1713805831689,-2260.27045286,0.00011433,2]
[323203277,1713805831699,-300.0,0.00011434,2]
[323203278,1713805831708,-231.08481011,0.00011435,2]
[323203279,1713805831719,-1493.56061382,0.00011435,2]
[323203280,1713805831751,-1153.17306,0.00011435,2]
[323203281,1713805831763,-134.37051576,0.00011435,2]
[323203282,1713805831773,-371.18,0.00011437,2]
[323203283,1713805831782,-200.0,0.00011552,2]
[323203284,1713805831795,-499.99,0.00011552,2]
[323203285,1713805831805,-150.99,0.00011552,2]
[323203286,1713805831815,-250.0,0.00011675,2]
[323203287,1713805831825,-43.00567918,0.00011675,2]
[323203288,1713805831836,-880.49190557,0.00011675,2]
[323203289,1713805831848,-670.65241525,0.00011675,2]
[323203290,1713805831858,-345.62092132,0.00011719,2]
[323203291,1713805831913,-63.97907868,0.00011719,2]
[323203292,1713805831923,-169.62,0.00011728,2]
[323203293,1713805831932,-1016.40092132,0.00011728,2]
[323203294,1713805831943,-382.93124891,0.00011728,2]
[323203295,1713805831955,-2561.69588905,0.00011728,2]
[323203296,1713805831966,-2453.63967031,0.00011728,2]
[323203304,1713805832282,-2029.46227041,0.00011728,2]
[323203305,1713805832292,-304.52,0.00011768,2]
[323203306,1713805832304,-735.49862307,0.00011785,2]
[323203307,1713805832316,-47.26038869,0.00011852,2]
[323203308,1713805832342,-118.19961131,0.00011852,2]
[323203309,1713805832351,-482.20464774,0.00011861,2]
[323203310,1713805832363,-108.19535226,0.00011861,2]
[323203311,1713805832373,-150.78,0.00011901,2]
[323203312,1713805832383,-124.68864774,0.00011978,2]
[323203313,1713805832412,-175.31135226,0.00011978,2]
[323203314,1713805832422,-2750.0,0.00012,2]
[323203315,1713805832432,-150.0,0.00012192,2]
[323203316,1713805832442,-150.0,0.00012192,2]
[323203317,1713805832453,-150.0,0.000122,2]
[323203318,1713805832463,-3513.87176849,0.00012398,2]
[323203319,1713805832473,-4995.72900744,0.00012698,2]
[323203320,1713805832482,-1671.6576,0.00012699,2]
[323203321,1713805832494,-1000.0,0.00012699,2]
[323203322,1713805832504,-1000.0,0.00012699,2]
[323203323,1713805832515,-1574.6521,0.00012699,2]
[323203324,1713805832525,-65251.0411,0.000127,2]
[323203325,1713805832536,-29253.21715137,0.000127,2]
[323203381,1713805838468,-209.946,0.000126,2]
[323203383,1713805838478,-1527.27610658,0.000127,2]
[323203387,1713805838506,-12202.85284205,0.000127,2]
[323203389,1713805838515,-2719.61914915,0.000127,2]
[323203391,1713805838526,-662.88,0.000127,2]
[323203401,1713805838613,-12692.21275085,0.000127,2]
[323203403,1713805838622,-4312.33239987,0.00012796,2]
[323203405,1713805838631,-184.38233432,0.00012796,2]
[323203407,1713805838640,-9872.22191118,0.00012799,2]
[323203409,1713805838652,-419.6410628,0.00012799,2]
[323203413,1713805838678,-514.0,0.00012799,2]
[323203416,1713805838690,-8668.30132127,0.00012799,2]
[323203532,1713805839812,-503.48872017,0.00012799,2]
[323203537,1713805839852,-2032.2,0.00012799,2]
[323203544,1713805839907,-1744.87665304,0.00012799,2]
[323203546,1713805839919,-607.00559785,0.00012799,2]
[323203549,1713805839930,-261.37099247,0.00012799,2]
[323203559,1713805840021,-561.64603128,0.00012799,2]
[323203566,1713805840078,-278.13525569,0.00012799,2]
[323203865,1713805842850,-175.93,0.00011382,2]
[323203867,1713805842859,-8931.0171058,0.00012799,2]
[323203872,1713805842901,-473.286002,0.00012799,2]
[323203879,1713805842957,-472.93999962,0.00012799,2]
[323203887,1713805843020,-1836.89131388,0.00012799,2]
[323204206,1713805846055,-5312.3436015,0.00012799,2]
[323204308,1713806170889,285.42,9.84e-05,2]
[323204309,1713806651379,271.14,9.638e-05,2]
[323204310,1713806946169,2159.86,0.00011194,2]
[323204311,1713807021085,250.0,0.00011194,2]
[323204329,1713807031870,-155.0,0.00011258,2]
[323204330,1713807031879,-314.29674785,0.00011259,2]
[323204331,1713807031890,-432.38722525,0.00011259,2]
[323204332,1713807031923,-1381.24522767,0.00011259,2]
[323204333,1713807031934,-231.86199446,0.00011259,2]
[323204334,1713807031944,-1389.09795632,0.00011259,2]
[323204335,1713807031953,-155.0,0.00011259,2]
[323204336,1713807031962,-155.0,0.00011259,2]
[323204337,1713807031971,-35.26880328,0.0001126,2]
[323204338,1713807032010,-745.99961255,0.0001126,2]
[323204339,1713807032019,-2.58857889,0.0001126,2]
[323204340,1713807032032,-234.13561901,0.0001126,2]
[323204341,1713807032042,-601.41403316,0.00011261,8]
[323204342,1713807032050,-150.0,0.00011262,2]
[323204343,1713807032059,-78.52098365,0.00011265,2]
[323204344,1713807032116,-2651.35901635,0.00011265,2]
[323204345,1713807032126,-672.32,0.00011274,2]
[323204346,1713807032135,-150.78,0.00011285,2]
[323204347,1713807032145,-153.67,0.00011383,2]
[323204348,1713807032154,-327.68,0.00011431,2]
[323204349,1713807032163,-1276.99875201,0.00011463,2]
[323204350,1713807032274,-314.42749356,0.00011463,2]
[323204388,1713807037946,-1765.0,0.00011463,2]
[323204396,1713807038018,-262.65011809,0.00011463,2]
[323204405,1713807038405,-7461.76781148,0.00011463,2]
[323204407,1713807038417,-66683.54151361,0.00011463,2]
[323204410,1713807038429,-896.87671131,0.00011463,2]
[323204412,1713807038438,-1556.20254387,0.00011464,2]
[323204414,1713807038450,-820.17749397,0.00011464,2]
[323204416,1713807038461,-59824.06835113,0.00011464,2]
[323204418,1713807038470,-157.7975486,0.00011465,2]
[323204420,1713807038479,-3367.55,0.00011465,2]
[323204422,1713807038488,-160.6,0.00011573,2]
[323204424,1713807038498,-499.99,0.00011573,2]
[323204426,1713807038508,-153.67,0.00011581,2]
[323204428,1713807038517,-180.65,0.00011738,2]
[323204430,1713807038526,-153.67,0.00011779,2]
[323204432,1713807038537,-271.14,0.00011902,2]
[323204434,1713807038546,-153.67,0.00011977,2]
[323204436,1713807038556,-2750.0,0.00012,2]
[323204438,1713807038565,-1695.17272256,0.00012234,2]
[323204440,1713807038574,-210.0,0.00012388,2]
[323204442,1713807038584,-158.91,0.00012519,2]
[323204444,1713807038593,-500.0,0.00012598,2]
[323204446,1713807038602,-2109.37001274,0.00012598,2]
[323204449,1713807038625,-390.62998726,0.00012598,2]
[323204451,1713807038635,-21424.16737186,0.000126,2]
[323204454,1713807038648,-1340.01178555,0.000126,2]
[323204456,1713807038661,-7348.94636739,0.000126,2]
[323204458,1713807038670,-3000.0,0.0001267,2]
[323204460,1713807038680,-1221.59250652,0.0001268,2]
[323204462,1713807038689,-672.32,0.00012684,2]
[323204464,1713807038698,-62937.5281041,0.00012698,2]
[323204468,1713807038721,-518.94618326,0.00012698,2]
[323204470,1713807038733,-1272.93288325,0.00012698,2]
[323204472,1713807038743,-3556.63864501,0.00012699,2]
[323204476,1713807038765,-998.84386033,0.00012699,2]
[323204552,1713807039480,-313.27,0.00012699,2]
[323204556,1713807039509,-651.19754,0.00012699,2]
[323204559,1713807039520,-4480.48753922,0.00012699,2]
[323204561,1713807039533,-1278.2803115,0.00012699,2]
[323204701,1713807041578,-492.31580113,0.00012699,2]
[323204702,1713807041590,-454.53364988,0.00012699,2]
[323204703,1713807041601,-2467.85947809,0.00012699,2]
[323204704,1713807041726,-6223.5107314,0.00012699,2]
[323204705,1713807041820,-3464.51519998,0.00012699,2]
[323204720,1713807043193,-124226.98484346,0.00012699,2]
[323204721,1713807043203,-170.78356453,0.0001276,2]
[323204722,1713807043212,-170.78356451,0.00012795,2]
[323204723,1713807043221,-4459.357382,0.00012796,2]
[323204724,1713807043230,-192.61177871,0.00012796,2]
[323204725,1713807043240,-172.94384041,0.00012796,2]
[323204726,1713807043249,-177.99668941,0.00012796,2]
[323204727,1713807043257,-2382.39300994,0.00012796,2]
[323204728,1713807043266,-10000.0,0.00012797,2]
[323204729,1713807043276,-347.38587566,0.00012799,2]
[323204730,1713807043286,-158628.09992366,0.000128,5]
[323204731,1713807043295,-5000.0,0.000128,2]
[323204732,1713807043304,-571.0538058,0.000128,2]
[323204733,1713807043313,-175.93,0.00012805,2]
[323204734,1713807043322,-170.78356451,0.0001283,2]
[323204735,1713807043332,-151.22363177,0.00012834,2]
[323204736,1713807043342,-27715.24880855,0.00012844,2]
[323204737,1713807043351,-327.68,0.0001286,2]
[323204738,1713807043361,-170.78356451,0.00012865,2]
[323204739,1713807043371,-384.27272631,0.00012868,2]
[323204740,1713807043381,-915.47751892,0.00012878,2]
[323204741,1713807043391,-183.27365707,0.00012878,2]
[323204742,1713807043400,-23344.54514133,0.00012878,2]
[323204743,1713807043409,-157.94864644,0.00012878,2]
[323204744,1713807043418,-711.662378,0.00012878,2]
[323204745,1713807043428,-3620.79961854,0.00012878,2]
[323204746,1713807043437,-256.59315283,0.00012878,2]
[323204747,1713807043447,-1030.5412573,0.00012879,3]
[323204748,1713807043456,-1030.5412573,0.00012879,3]
[323204749,1713807043465,-1030.5412573,0.00012879,3]
[323204750,1713807043474,-1030.54125732,0.00012879,3]
[323204751,1713807043483,-14654.15118467,0.0001288,2]
[323204759,1713807043556,-3210.32532087,0.0001288,2]
[323204768,1713807046429,-1251.98820006,0.00012803,2]
[323204769,1713807046441,-8748.01179994,0.00012803,2]
[323204770,1713807046451,-227.21716817,0.00012878,2]
[323204771,1713807046460,-236.60894022,0.00012878,2]
[323204772,1713807046470,-237.65643912,0.00012878,2]
[323204773,1713807046782,-180050.42456865,0.0001288,2]
[323204774,1713807046838,-6504.4,0.0001288,2]
[323204775,1713807046850,-1670.775,0.0001288,2]
[323204776,1713807046861,-569.82333738,0.0001288,2]
[323204777,1713807046947,-1583.72672779,0.0001288,2]
[323204778,1713807046958,-433.86403097,0.0001288,2]
[323204779,1713807046970,-2749.21899,0.0001288,2]
[323204780,1713807064073,2921.8533386,0.00011463,10]
[323204781,1713807085962,2434.87778216,0.00011463,10]
[323204782,1713807092995,9705.4123,0.00011163,2]
[323204783,1713807125944,1356.23197572,0.00011463,10]
[323204784,1713807213110,265.64,0.00010006,2]
[323204785,1713807269029,2434.87778216,0.00010006,10]
[323204786,1713807286710,1268.57132451,0.00010006,10]
[323204787,1713807304474,1268.57132451,0.00010006,10]
[323204788,1713807323274,1268.57132451,0.00010006,10]
[323204789,1713807340477,1268.57132451,0.00010006,10]
[323204790,1713807356493,1268.57132451,0.00010006,10]
[323204791,1713807372489,1268.57132451,0.00010006,10]
[323204792,1713807388480,1268.57132451,0.00010006,10]
[323204793,1713807410518,1268.57132451,0.00010006,10]
[323204794,1713807431320,1246.65237339,0.00010006,10]
[323204795,1713807485382,-501.17836097,0.00011448,8]
[323204796,1713807485403,-305.29430304,0.00011448,2]
[323204797,1713807485424,-571.37171296,0.00011448,7]
[323204798,1713807485445,-1994.63391406,0.00011449,2]
[323204799,1713807485466,-238.20007308,0.00011449,2]
[323204800,1713807485488,-389.32163589,0.00011449,2]
[323204801,1713807486191,-4000.0,0.00011449,2]
[323204802,1713807486763,-4000.0,0.00011449,2]
[323204803,1713807487595,-4000.0,0.00011449,2]
[323204804,1713807488141,-4000.0,0.00011449,2]
[323204805,1713807488826,-4000.0,0.00011448,7]
[323204806,1713807489530,-4000.0,0.00011448,7]
[323204807,1713807490475,-1179.22619712,0.00011448,7]
[323204808,1713807490497,-2820.77380288,0.00011449,2]
[323204809,1713807492035,-4000.0,0.00011449,2]
[323204810,1713807499103,-982.0,0.00011449,2]
[323204811,1713807511720,1049.2502022,0.00010006,2]
[323204812,1713807524886,-1718.0,0.00011449,2]
[323204813,1713807526583,8670.67481114,0.00010006,2]
[323204814,1713807528429,179.94670005,0.00010006,2]
[323204815,1713807529617,1049.2502022,0.00010006,2]
[323204816,1713807529904,-3000.0,0.00011449,2]
[323204817,1713807530803,-3000.0,0.00011449,2]
[323204818,1713807531295,-3000.0,0.00011449,2]
[323204819,1713807531982,-3000.0,0.00011449,2]
[323204820,1713807532734,-3000.0,0.00011449,2]
[323204821,1713807547454,344.38092617,0.00010006,2]
[323204822,1713807551642,247.82015446,9.159e-05,2]
[323204823,1713807602819,155.0,9.159e-05,2]
[323204824,1713807610597,1819.58,0.00011116,2]
[323204825,1713807616796,195.71648188,9.159e-05,2]
[323204826,1713807621342,20170.36299635,9.159e-05,2]
[323204827,1713807633709,1825.04289395,9.159e-05,2]
[323204828,1713807687833,1000.0,0.00011118,2]
[323204829,1713807703886,263.52,9.148e-05,2]
[323204830,1713807712137,1049.2502022,0.00011118,2]
[323204831,1713807730190,546.65935535,0.00011118,2]
[323204832,1713807746132,546.65935535,0.00011118,2]
[323204833,1713807764190,546.65935535,0.00011118,2]
[323204834,1713807784153,546.65935535,0.00011118,2]
[323204835,1713807800173,546.65935535,0.00011118,2]
[323204836,1713807822166,546.65935535,0.00011118,2]
[323204837,1713807840164,546.65935535,0.00011118,2]
[323204838,1713807862157,546.65935535,0.00011118,2]
[323204839,1713807880202,546.65935535,0.00011118,2]
[323204840,1713807896682,375.63367741,0.00011118,2]
[323204841,1713807987321,160.6,0.00010939,2]
[323204843,1713808075944,250.0,0.00010979,2]
[323204844,1713808089085,151.65,0.00011048,2]
[323204845,1713808096422,151.65,0.00011096,2]
[323204846,1713808096531,151.65,0.00011144,2]